[Event "Titled Tuesday Blitz June 21 Early 2022"]
[White "Fries-Nielsen, Jens Ove"]
[Black "Bluebaum, Matthias"]
[WhiteFideId "1400142"]
[BlackFideId "24651516"]
[WhiteElo "2508"]
[BlackElo "2556"]
[Result "0-1"]
[Round "01"]
[TimeControl "180+1"]
[Date "2022.06.21"]
[WhiteClock "0:01:22"]
[BlackClock "0:00:44"]

1. d4 {[%clk 0:02:56]}  Nf6 {[%clk 0:02:54]} 2. Nc3 {[%clk 0:02:56]}  d5 {[%clk 0:02:47]} 3. Bf4 {[%clk 0:02:55]}  c5 {[%clk 0:02:48]} 4. e3 {[%clk 0:02:55]}  cxd4 {[%clk 0:02:48]} 5. Qxd4 {[%clk 0:02:54]}  a6 {[%clk 0:02:42]} 6. O-O-O {[%clk 0:02:52]}  Nc6 {[%clk 0:02:42]} 7. Qd2 {[%clk 0:02:51]}  e5 {[%clk 0:02:18]} 8. Bg5 {[%clk 0:02:50]}  Bb4 {[%clk 0:02:18]} 9. a3 {[%clk 0:02:49]}  Bxc3 {[%clk 0:02:11]} 10. Qxc3 {[%clk 0:02:48]}  Ne4 {[%clk 0:02:11]} 11. Bxd8 {[%clk 0:02:41]}  Nxc3 {[%clk 0:02:12]} 12. bxc3 {[%clk 0:02:41]}  Kxd8 {[%clk 0:02:12]} 13. Rxd5+ {[%clk 0:02:41]}  Kc7 {[%clk 0:02:13]} 14. Nf3 {[%clk 0:02:34]}  Be6 {[%clk 0:02:13]} 15. Rd2 {[%clk 0:02:33]}  f6 {[%clk 0:02:13]} 16. Be2 {[%clk 0:02:29]}  Rad8 {[%clk 0:02:13]} 17. Rhd1 {[%clk 0:02:28]}  Rxd2 {[%clk 0:02:14]} 18. Nxd2 {[%clk 0:02:28]}  Na5 {[%clk 0:02:13]} 19. Nb3 {[%clk 0:02:25]}  Bxb3 {[%clk 0:02:10]} 20. cxb3 {[%clk 0:02:25]}  Nxb3+ {[%clk 0:02:11]} 21. Kc2 {[%clk 0:02:25]}  Nc5 {[%clk 0:02:12]} 22. h4 {[%clk 0:02:19]}  Rd8 {[%clk 0:02:11]} 23. Rxd8 {[%clk 0:02:14]}  Kxd8 {[%clk 0:02:12]} 24. Bf3 {[%clk 0:02:13]}  Kc7 {[%clk 0:02:09]} 25. c4 {[%clk 0:02:14]}  Kb6 {[%clk 0:02:04]} 26. Kc3 {[%clk 0:02:13]}  Ka5 {[%clk 0:02:04]} 27. g4 {[%clk 0:01:54]}  Ka4 {[%clk 0:01:59]} 28. Kb2 {[%clk 0:01:50]}  Ka5 {[%clk 0:01:34]} 29. Kc3 {[%clk 0:01:46]}  g5 {[%clk 0:01:29]} 30. hxg5 {[%clk 0:01:45]}  fxg5 {[%clk 0:01:30]} 31. Bd5 {[%clk 0:01:42]}  Ka4 {[%clk 0:01:13]} 32. Kb2 {[%clk 0:01:41]}  Nd3+ {[%clk 0:00:58]} 33. Kc3 {[%clk 0:01:41]}  Nxf2 {[%clk 0:00:59]} 34. Bxb7 {[%clk 0:01:41]}  Nxg4 {[%clk 0:00:59]} 35. Bc6+ {[%clk 0:01:38]}  Ka5 {[%clk 0:00:59]} 36. c5 {[%clk 0:01:38]}  Nxe3 {[%clk 0:00:57]} 37. Bd7 {[%clk 0:01:35]}  h5 {[%clk 0:00:55]} 38. Kd3 {[%clk 0:01:28]}  Nd5 {[%clk 0:00:55]} 39. Kc4 {[%clk 0:01:27]}  Nc7 {[%clk 0:00:51]} 40. Kd3 {[%clk 0:01:23]}  Nd5 {[%clk 0:00:44]} 41. Ke4 {[%clk 0:01:22]}  Nf6+ {[%clk 0:00:44]} 0-1


[Site "https://www.chess.com"]

[Event "Titled Tuesday Blitz June 21 Early 2022"]
[White "Gabrielian, Artur"]
[Black "Horak, Martin"]
[WhiteFideId "4131002"]
[BlackFideId "367095"]
[WhiteElo "2440"]
[BlackElo "1997"]
[Result "1-0"]
[Round "01"]
[TimeControl "180+1"]
[Date "2022.06.22"]
[WhiteClock "0:02:11"]
[BlackClock "0:01:32"]

1. e4 {[%clk 0:02:59]}  c5 {[%clk 0:02:56]} 2. Nc3 {[%clk 0:02:58]}  d6 {[%clk 0:02:55]} 3. d4 {[%clk 0:02:58]}  cxd4 {[%clk 0:02:56]} 4. Qxd4 {[%clk 0:02:57]}  Nc6 {[%clk 0:02:50]} 5. Qd2 {[%clk 0:02:57]}  g6 {[%clk 0:02:34]} 6. b3 {[%clk 0:02:57]}  Bg7 {[%clk 0:02:35]} 7. Bb2 {[%clk 0:02:56]}  Nf6 {[%clk 0:02:35]} 8. O-O-O {[%clk 0:02:56]}  a6 {[%clk 0:02:32]} 9. f3 {[%clk 0:02:53]}  b5 {[%clk 0:02:32]} 10. Kb1 {[%clk 0:02:49]}  b4 {[%clk 0:02:29]} 11. Nd5 {[%clk 0:02:48]}  e6 {[%clk 0:02:07]} 12. Nxf6+ {[%clk 0:02:44]}  Bxf6 {[%clk 0:02:08]} 13. Bxf6 {[%clk 0:02:12]}  Qxf6 {[%clk 0:02:09]} 14. Qxd6 {[%clk 0:02:12]}  Ne7 {[%clk 0:01:32]} 15. Qd8# {[%clk 0:02:11]} 1-0


[Site "https://www.chess.com"]

[Event "Titled Tuesday Blitz June 21 Early 2022"]
[White "Goltsev, Dmitry"]
[Black "Borisova, Ekaterina"]
[WhiteFideId "24176710"]
[BlackFideId "34124184"]
[WhiteElo "2258"]
[BlackElo "2039"]
[Result "1-0"]
[Round "01"]
[TimeControl "180+1"]
[Date "2022.06.21"]
[WhiteClock "0:01:23"]
[BlackClock "0:00:06"]

1. e4 {[%clk 0:03:00]}  c5 {[%clk 0:02:56]} 2. Nf3 {[%clk 0:02:57]}  Nc6 {[%clk 0:02:55]} 3. d4 {[%clk 0:02:58]}  cxd4 {[%clk 0:02:54]} 4. Nxd4 {[%clk 0:02:59]}  Nf6 {[%clk 0:02:55]} 5. Nc3 {[%clk 0:02:59]}  e5 {[%clk 0:02:55]} 6. Ndb5 {[%clk 0:02:59]}  d6 {[%clk 0:02:56]} 7. Nd5 {[%clk 0:03:00]}  Nxd5 {[%clk 0:02:55]} 8. exd5 {[%clk 0:03:01]}  Ne7 {[%clk 0:02:55]} 9. c4 {[%clk 0:03:01]}  Ng6 {[%clk 0:02:49]} 10. Qa4 {[%clk 0:03:01]}  Bd7 {[%clk 0:02:48]} 11. Qb4 {[%clk 0:03:01]}  Qb8 {[%clk 0:02:47]} 12. Be3 {[%clk 0:02:59]}  b6 {[%clk 0:02:47]} 13. a4 {[%clk 0:02:54]}  Be7 {[%clk 0:02:42]} 14. a5 {[%clk 0:02:49]}  a6 {[%clk 0:02:32]} 15. Nc3 {[%clk 0:02:46]}  b5 {[%clk 0:02:32]} 16. cxb5 {[%clk 0:02:45]}  axb5 {[%clk 0:02:31]} 17. Bxb5 {[%clk 0:02:44]}  O-O {[%clk 0:02:29]} 18. O-O {[%clk 0:02:40]}  f5 {[%clk 0:02:27]} 19. Bb6 {[%clk 0:02:39]}  Bxb5 {[%clk 0:02:22]} 20. Nxb5 {[%clk 0:02:40]}  Qb7 {[%clk 0:02:11]} 21. Rac1 {[%clk 0:02:37]}  Nf4 {[%clk 0:02:06]} 22. Rc6 {[%clk 0:02:17]}  Kh8 {[%clk 0:01:42]} 23. Qc4 {[%clk 0:02:08]}  Qd7 {[%clk 0:01:24]} 24. Rc7 {[%clk 0:02:00]}  Qe8 {[%clk 0:01:25]} 25. g3 {[%clk 0:01:59]}  Ng6 {[%clk 0:00:57]} 26. Qc6 {[%clk 0:01:55]}  e4 {[%clk 0:00:46]} 27. Qxe8 {[%clk 0:01:53]}  Rfxe8 {[%clk 0:00:47]} 28. Rfc1 {[%clk 0:01:49]}  Ne5 {[%clk 0:00:45]} 29. Rb7 {[%clk 0:01:46]}  Bg5 {[%clk 0:00:41]} 30. Rcc7 {[%clk 0:01:45]}  Nf3+ {[%clk 0:00:37]} 31. Kg2 {[%clk 0:01:43]}  Bf6 {[%clk 0:00:32]} 32. Nxd6 {[%clk 0:01:42]}  Rf8 {[%clk 0:00:25]} 33. Nxf5 {[%clk 0:01:37]}  Bxb2 {[%clk 0:00:19]} 34. Nxg7 {[%clk 0:01:32]}  e3 {[%clk 0:00:09]} 35. Bxe3 {[%clk 0:01:29]}  Rxa5 {[%clk 0:00:08]} 36. Ne6 {[%clk 0:01:28]}  Ne1+ {[%clk 0:00:06]} 37. Kf1 {[%clk 0:01:23]} 1-0


[Site "https://www.chess.com"]

[Event "Titled Tuesday Blitz June 21 Early 2022"]
[White "Goltseva, Ekaterina"]
[Black "Xiong, Jeffery"]
[WhiteFideId "24173770"]
[BlackFideId "2047640"]
[WhiteElo "2086"]
[BlackElo "2714"]
[Result "0-1"]
[Round "01"]
[TimeControl "180+1"]
[Date "2022.06.21"]
[WhiteClock "0:00:08"]
[BlackClock "0:00:51"]

1. d4 {[%clk 0:02:46]}  Nf6 {[%clk 0:02:58]} 2. c4 {[%clk 0:02:46]}  e6 {[%clk 0:02:59]} 3. Nc3 {[%clk 0:02:45]}  Bb4 {[%clk 0:02:58]} 4. g3 {[%clk 0:02:45]}  Bxc3+ {[%clk 0:02:56]} 5. bxc3 {[%clk 0:02:45]}  O-O {[%clk 0:02:57]} 6. Bg2 {[%clk 0:02:45]}  d6 {[%clk 0:02:58]} 7. e4 {[%clk 0:02:43]}  Nc6 {[%clk 0:02:52]} 8. Ne2 {[%clk 0:02:41]}  e5 {[%clk 0:02:51]} 9. O-O {[%clk 0:02:39]}  b6 {[%clk 0:02:48]} 10. Ba3 {[%clk 0:02:05]}  Ba6 {[%clk 0:02:47]} 11. Qa4 {[%clk 0:01:51]}  Na5 {[%clk 0:02:17]} 12. dxe5 {[%clk 0:01:47]}  dxe5 {[%clk 0:02:18]} 13. Bxf8 {[%clk 0:01:42]}  Qxf8 {[%clk 0:02:19]} 14. Rfd1 {[%clk 0:01:35]}  Bxc4 {[%clk 0:02:17]} 15. Nc1 {[%clk 0:01:32]}  Qc5 {[%clk 0:02:03]} 16. Nd3 {[%clk 0:01:15]}  Qe7 {[%clk 0:02:03]} 17. Nb4 {[%clk 0:01:10]}  Qc5 {[%clk 0:02:01]} 18. Nd5 {[%clk 0:01:07]}  Bxd5 {[%clk 0:01:20]} 19. exd5 {[%clk 0:01:07]}  Rd8 {[%clk 0:01:21]} 20. Qb4 {[%clk 0:00:40]}  Qd6 {[%clk 0:01:21]} 21. Rab1 {[%clk 0:00:25]}  Nd7 {[%clk 0:01:21]} 22. a3 {[%clk 0:00:21]}  Re8 {[%clk 0:01:18]} 23. c4 {[%clk 0:00:21]}  Nc5 {[%clk 0:01:11]} 24. Qc3 {[%clk 0:00:20]}  e4 {[%clk 0:01:00]} 25. Re1 {[%clk 0:00:21]}  f5 {[%clk 0:01:00]} 26. Rbc1 {[%clk 0:00:19]}  Nd3 {[%clk 0:00:57]} 27. Qxd3 {[%clk 0:00:13]}  exd3 {[%clk 0:00:58]} 28. Rxe8+ {[%clk 0:00:13]}  Kf7 {[%clk 0:00:59]} 29. Re3 {[%clk 0:00:13]}  d2 {[%clk 0:00:58]} 30. Rd1 {[%clk 0:00:12]}  Nxc4 {[%clk 0:00:58]} 31. Rc3 {[%clk 0:00:12]}  Qe5 {[%clk 0:00:51]} 32. Bf1 {[%clk 0:00:08]}  Qxc3 {[%clk 0:00:51]} 0-1


[Site "https://www.chess.com"]

[Event "Titled Tuesday Blitz June 21 Early 2022"]
[White "Gormally, Daniel W"]
[Black "Mickiewicz, Piotr"]
[WhiteFideId "406465"]
[BlackFideId "1114891"]
[WhiteElo "2543"]
[BlackElo "2209"]
[Result "1/2-1/2"]
[Round "01"]
[TimeControl "180+1"]
[Date "2022.06.22"]
[WhiteClock "0:00:28"]
[BlackClock "0:00:12"]

1. d4 {[%clk 0:02:59]}  d5 {[%clk 0:02:57]} 2. c4 {[%clk 0:02:59]}  e6 {[%clk 0:02:58]} 3. Nf3 {[%clk 0:03:00]}  Nf6 {[%clk 0:02:58]} 4. Nc3 {[%clk 0:03:00]}  c6 {[%clk 0:02:57]} 5. Bg5 {[%clk 0:02:59]}  Nbd7 {[%clk 0:02:55]} 6. e3 {[%clk 0:02:59]}  Qa5 {[%clk 0:02:54]} 7. cxd5 {[%clk 0:02:59]}  Nxd5 {[%clk 0:02:53]} 8. Qd2 {[%clk 0:02:59]}  Bb4 {[%clk 0:02:52]} 9. Rc1 {[%clk 0:02:58]}  h6 {[%clk 0:02:50]} 10. Bh4 {[%clk 0:02:58]}  Nxc3 {[%clk 0:02:34]} 11. bxc3 {[%clk 0:02:58]}  Ba3 {[%clk 0:02:34]} 12. Rb1 {[%clk 0:02:58]}  b6 {[%clk 0:02:34]} 13. Qd3 {[%clk 0:02:57]}  O-O {[%clk 0:02:30]} 14. Be2 {[%clk 0:02:56]}  Bb7 {[%clk 0:02:04]} 15. O-O {[%clk 0:02:49]}  c5 {[%clk 0:02:03]} 16. Nd2 {[%clk 0:02:48]}  cxd4 {[%clk 0:01:29]} 17. Nc4 {[%clk 0:02:45]}  Qa6 {[%clk 0:01:09]} 18. cxd4 {[%clk 0:02:41]}  g5 {[%clk 0:00:33]} 19. Bg3 {[%clk 0:02:32]}  Be7 {[%clk 0:00:31]} 20. Qd2 {[%clk 0:02:26]}  Qa4 {[%clk 0:00:29]} 21. Qd1 {[%clk 0:01:54]}  Qxd1 {[%clk 0:00:26]} 22. Rfxd1 {[%clk 0:01:54]}  Rac8 {[%clk 0:00:27]} 23. Rdc1 {[%clk 0:01:47]}  Nf6 {[%clk 0:00:24]} 24. Nd6 {[%clk 0:01:45]}  Bxd6 {[%clk 0:00:23]} 25. Bxd6 {[%clk 0:01:45]}  Rfe8 {[%clk 0:00:23]} 26. Bb5 {[%clk 0:01:44]}  Rxc1+ {[%clk 0:00:21]} 27. Rxc1 {[%clk 0:01:43]}  Rc8 {[%clk 0:00:22]} 28. Rxc8+ {[%clk 0:01:42]}  Bxc8 {[%clk 0:00:23]} 29. f3 {[%clk 0:01:41]}  Bd7 {[%clk 0:00:22]} 30. Ba6 {[%clk 0:01:40]}  Nd5 {[%clk 0:00:23]} 31. Kf2 {[%clk 0:01:34]}  Nc3 {[%clk 0:00:22]} 32. Bc4 {[%clk 0:01:33]}  Bb5 {[%clk 0:00:21]} 33. Bxb5 {[%clk 0:01:27]}  Nxb5 {[%clk 0:00:21]} 34. Bb8 {[%clk 0:01:22]}  a6 {[%clk 0:00:21]} 35. Ke1 {[%clk 0:01:19]}  Nc3 {[%clk 0:00:22]} 36. a3 {[%clk 0:01:17]}  Nd5 {[%clk 0:00:22]} 37. Kd2 {[%clk 0:01:17]}  Ne7 {[%clk 0:00:23]} 38. Ba7 {[%clk 0:01:12]}  b5 {[%clk 0:00:23]} 39. Bc5 {[%clk 0:01:12]}  Nc6 {[%clk 0:00:23]} 40. e4 {[%clk 0:01:09]}  f5 {[%clk 0:00:20]} 41. exf5 {[%clk 0:01:06]}  exf5 {[%clk 0:00:19]} 42. d5 {[%clk 0:01:07]}  Ne5 {[%clk 0:00:19]} 43. Kc3 {[%clk 0:01:07]}  Nd7 {[%clk 0:00:19]} 44. Bd4 {[%clk 0:01:04]}  Kf7 {[%clk 0:00:20]} 45. Kb4 {[%clk 0:01:05]}  Ke7 {[%clk 0:00:20]} 46. Bg7 {[%clk 0:01:04]}  Kd6 {[%clk 0:00:19]} 47. Bxh6 {[%clk 0:01:04]}  g4 {[%clk 0:00:19]} 48. fxg4 {[%clk 0:01:02]}  fxg4 {[%clk 0:00:20]} 49. Ka5 {[%clk 0:01:00]}  Kxd5 {[%clk 0:00:20]} 50. Kxa6 {[%clk 0:01:01]}  Kc4 {[%clk 0:00:20]} 51. Bf4 {[%clk 0:00:56]}  Nc5+ {[%clk 0:00:20]} 52. Ka5 {[%clk 0:00:54]}  Nd3 {[%clk 0:00:20]} 53. Bg3 {[%clk 0:00:51]}  Nc5 {[%clk 0:00:20]} 54. h4 {[%clk 0:00:51]}  gxh3 {[%clk 0:00:21]} 55. gxh3 {[%clk 0:00:51]}  Nb3+ {[%clk 0:00:21]} 56. Kb6 {[%clk 0:00:50]}  Nd4 {[%clk 0:00:22]} 57. h4 {[%clk 0:00:50]}  Nf5 {[%clk 0:00:22]} 58. Be1 {[%clk 0:00:49]}  Ng7 {[%clk 0:00:19]} 59. Kc6 {[%clk 0:00:45]}  Nh5 {[%clk 0:00:20]} 60. Bb4 {[%clk 0:00:42]}  Ng3 {[%clk 0:00:18]} 61. Kd7 {[%clk 0:00:42]}  Kd5 {[%clk 0:00:17]} 62. Be1 {[%clk 0:00:38]}  Nh5 {[%clk 0:00:15]} 63. Ke7 {[%clk 0:00:37]}  Ke5 {[%clk 0:00:15]} 64. Bc3+ {[%clk 0:00:37]}  Kf5 {[%clk 0:00:14]} 65. Kd6 {[%clk 0:00:37]}  Nf4 {[%clk 0:00:14]} 66. Kc6 {[%clk 0:00:36]}  Ne2 {[%clk 0:00:14]} 67. Be1 {[%clk 0:00:33]}  Nd4+ {[%clk 0:00:12]} 68. Kc5 {[%clk 0:00:32]}  Nc2 {[%clk 0:00:13]} 69. Bb4 {[%clk 0:00:29]}  Kg4 {[%clk 0:00:12]} 70. Kxb5 {[%clk 0:00:27]}  Nxa3+ {[%clk 0:00:12]} 71. Bxa3 {[%clk 0:00:28]}  Kxh4 {[%clk 0:00:12]} 1/2-1/2


[Site "https://www.chess.com"]

[Event "Titled Tuesday Blitz June 21 Early 2022"]
[White "Grigorov, Grigor"]
[Black "Petrovic, Aleksa"]
[WhiteFideId "2907313"]
[BlackFideId "967629"]
[WhiteElo "2510"]
[BlackElo "2117"]
[Result "1-0"]
[Round "01"]
[TimeControl "180+1"]
[Date "2022.06.21"]
[WhiteClock "0:01:43"]
[BlackClock "0:00:13"]

1. d4 {[%clk 0:02:59]}  Nf6 {[%clk 0:02:58]} 2. Nf3 {[%clk 0:02:59]}  e6 {[%clk 0:02:58]} 3. Bg5 {[%clk 0:02:58]}  c5 {[%clk 0:02:56]} 4. e3 {[%clk 0:02:58]}  h6 {[%clk 0:02:56]} 5. Bh4 {[%clk 0:02:58]}  b6 {[%clk 0:02:56]} 6. Nbd2 {[%clk 0:02:57]}  Bb7 {[%clk 0:02:55]} 7. Bd3 {[%clk 0:02:55]}  Be7 {[%clk 0:02:54]} 8. c3 {[%clk 0:02:55]}  Nc6 {[%clk 0:02:49]} 9. a3 {[%clk 0:02:51]}  cxd4 {[%clk 0:02:39]} 10. cxd4 {[%clk 0:02:50]}  Nh5 {[%clk 0:02:29]} 11. Bg3 {[%clk 0:02:44]}  O-O {[%clk 0:02:24]} 12. Qe2 {[%clk 0:02:43]}  f5 {[%clk 0:02:08]} 13. O-O {[%clk 0:02:36]}  f4 {[%clk 0:02:04]} 14. exf4 {[%clk 0:02:32]}  Nxf4 {[%clk 0:02:05]} 15. Bxf4 {[%clk 0:02:21]}  Rxf4 {[%clk 0:02:06]} 16. Qe3 {[%clk 0:02:21]}  Qf8 {[%clk 0:01:35]} 17. Be4 {[%clk 0:02:15]}  Qf7 {[%clk 0:01:27]} 18. d5 {[%clk 0:02:07]}  Bc5 {[%clk 0:01:17]} 19. Qd3 {[%clk 0:02:03]}  Ne7 {[%clk 0:01:10]} 20. dxe6 {[%clk 0:02:00]}  dxe6 {[%clk 0:00:57]} 21. Bxb7 {[%clk 0:02:00]}  Rf8 {[%clk 0:00:57]} 22. b4 {[%clk 0:01:55]}  Nf5 {[%clk 0:00:36]} 23. Be4 {[%clk 0:01:45]}  Be7 {[%clk 0:00:25]} 24. g3 {[%clk 0:01:44]}  Rg4 {[%clk 0:00:13]} 25. Ne5 {[%clk 0:01:43]} 1-0


[Site "https://www.chess.com"]

[Event "Titled Tuesday Blitz June 21 Early 2022"]
[White "Gubajdullin, Alexei"]
[Black "Glavina, Pablo"]
[WhiteFideId "4141202"]
[BlackFideId "100234"]
[WhiteElo "2280"]
[BlackElo "2369"]
[Result "1-0"]
[Round "01"]
[TimeControl "180+1"]
[Date "2022.06.22"]
[WhiteClock "0:02:19"]
[BlackClock "0:02:30"]

1. d4 {[%clk 0:02:59]}  d5 {[%clk 0:02:59]} 2. Nf3 {[%clk 0:02:58]}  e6 {[%clk 0:02:56]} 3. Bf4 {[%clk 0:02:58]}  c5 {[%clk 0:02:56]} 4. e3 {[%clk 0:02:58]}  Nc6 {[%clk 0:02:56]} 5. Nbd2 {[%clk 0:02:58]}  Nf6 {[%clk 0:02:54]} 6. c3 {[%clk 0:02:57]}  cxd4 {[%clk 0:02:52]} 7. exd4 {[%clk 0:02:56]}  Nh5 {[%clk 0:02:52]} 8. Be3 {[%clk 0:02:55]}  Bd6 {[%clk 0:02:52]} 9. g3 {[%clk 0:02:55]}  g6 {[%clk 0:02:52]} 10. Bg2 {[%clk 0:02:49]}  O-O {[%clk 0:02:48]} 11. O-O {[%clk 0:02:49]}  Ng7 {[%clk 0:02:45]} 12. Nb3 {[%clk 0:02:45]}  f6 {[%clk 0:02:45]} 13. Re1 {[%clk 0:02:44]}  e5 {[%clk 0:02:43]} 14. dxe5 {[%clk 0:02:43]}  Bxe5 {[%clk 0:02:44]} 15. Nxe5 {[%clk 0:02:41]}  fxe5 {[%clk 0:02:44]} 16. Qxd5+ {[%clk 0:02:41]}  Qxd5 {[%clk 0:02:43]} 17. Bxd5+ {[%clk 0:02:40]}  Kh8 {[%clk 0:02:44]} 18. Bc5 {[%clk 0:02:40]}  Re8 {[%clk 0:02:43]} 19. Bf7 {[%clk 0:02:35]}  Rd8 {[%clk 0:02:39]} 20. Rad1 {[%clk 0:02:33]}  Bf5 {[%clk 0:02:39]} 21. Rd6 {[%clk 0:02:23]}  Rxd6 {[%clk 0:02:33]} 22. Bxd6 {[%clk 0:02:22]}  Rd8 {[%clk 0:02:34]} 23. Bxe5 {[%clk 0:02:21]}  Nxe5 {[%clk 0:02:29]} 24. Rxe5 {[%clk 0:02:20]}  Rd1+ {[%clk 0:02:30]} 25. Kg2 {[%clk 0:02:20]}  Rb1 {[%clk 0:02:30]} 26. Re2 {[%clk 0:02:19]} 1-0


[Site "https://www.chess.com"]

[Event "Titled Tuesday Blitz June 21 Early 2022"]
[White "Guz, Ari"]
[Black "Lorente Serrano, Rosa Adela"]
[WhiteFideId "2825759"]
[BlackFideId "32091982"]
[WhiteElo "1913"]
[BlackElo "1820"]
[Result "1-0"]
[Round "01"]
[TimeControl "180+1"]
[Date "2022.06.22"]
[WhiteClock "0:00:20"]
[BlackClock "0:00:07"]

1. e4 {[%clk 0:02:59]}  c5 {[%clk 0:02:59]} 2. Nf3 {[%clk 0:02:59]}  d6 {[%clk 0:02:59]} 3. c3 {[%clk 0:02:59]}  Nf6 {[%clk 0:02:55]} 4. h3 {[%clk 0:02:58]}  g6 {[%clk 0:02:53]} 5. Bd3 {[%clk 0:02:56]}  Bg7 {[%clk 0:02:52]} 6. Bc2 {[%clk 0:02:57]}  O-O {[%clk 0:02:52]} 7. d4 {[%clk 0:02:57]}  cxd4 {[%clk 0:02:52]} 8. cxd4 {[%clk 0:02:58]}  b5 {[%clk 0:02:47]} 9. O-O {[%clk 0:02:53]}  a6 {[%clk 0:02:46]} 10. a4 {[%clk 0:02:50]}  Bb7 {[%clk 0:02:41]} 11. Qe2 {[%clk 0:02:48]}  b4 {[%clk 0:02:25]} 12. b3 {[%clk 0:02:43]}  a5 {[%clk 0:02:10]} 13. Rd1 {[%clk 0:02:27]}  Nfd7 {[%clk 0:02:07]} 14. Bb2 {[%clk 0:02:25]}  Qb6 {[%clk 0:02:01]} 15. Nbd2 {[%clk 0:02:22]}  d5 {[%clk 0:01:52]} 16. Rac1 {[%clk 0:02:13]}  Ba6 {[%clk 0:01:49]} 17. Qe3 {[%clk 0:02:10]}  Nf6 {[%clk 0:01:30]} 18. Ne5 {[%clk 0:01:58]}  e6 {[%clk 0:00:57]} 19. exd5 {[%clk 0:01:46]}  exd5 {[%clk 0:00:55]} 20. Qf3 {[%clk 0:01:38]}  Ra7 {[%clk 0:00:50]} 21. g4 {[%clk 0:01:32]}  Re7 {[%clk 0:00:46]} 22. g5 {[%clk 0:01:26]}  Nfd7 {[%clk 0:00:45]} 23. Qxd5 {[%clk 0:01:07]}  Nxe5 {[%clk 0:00:38]} 24. dxe5 {[%clk 0:01:06]}  Bb7 {[%clk 0:00:38]} 25. Qd4 {[%clk 0:00:57]}  Qe6 {[%clk 0:00:23]} 26. Be4 {[%clk 0:00:44]}  Bxe4 {[%clk 0:00:19]} 27. Nxe4 {[%clk 0:00:43]}  Qxh3 {[%clk 0:00:19]} 28. Nf6+ {[%clk 0:00:36]}  Bxf6 {[%clk 0:00:18]} 29. gxf6 {[%clk 0:00:37]}  Re6 {[%clk 0:00:18]} 30. Rd3 {[%clk 0:00:28]}  Qh5 {[%clk 0:00:17]} 31. Qe4 {[%clk 0:00:26]}  Nc6 {[%clk 0:00:17]} 32. Rxc6 {[%clk 0:00:21]}  Qg5+ {[%clk 0:00:16]} 33. Rg3 {[%clk 0:00:21]}  Qh5 {[%clk 0:00:09]} 34. Rxe6 {[%clk 0:00:20]}  fxe6 {[%clk 0:00:09]} 35. Qg4 {[%clk 0:00:19]}  Qh6 {[%clk 0:00:07]} 36. Qxe6+ {[%clk 0:00:20]} 1-0


[Site "https://www.chess.com"]

[Event "Titled Tuesday Blitz June 21 Early 2022"]
[White "Heinemann, Josefine"]
[Black "Tisaj, Domen"]
[WhiteFideId "12900460"]
[BlackFideId "14628708"]
[WhiteElo "2300"]
[BlackElo "2326"]
[Result "1-0"]
[Round "01"]
[TimeControl "180+1"]
[Date "2022.06.22"]
[WhiteClock "0:00:45"]
[BlackClock "0:00:17"]

1. e4 {[%clk 0:03:00]}  c5 {[%clk 0:02:59]} 2. Nf3 {[%clk 0:03:00]}  Nc6 {[%clk 0:02:59]} 3. Bb5 {[%clk 0:03:00]}  Nf6 {[%clk 0:02:59]} 4. Nc3 {[%clk 0:02:57]}  g6 {[%clk 0:02:59]} 5. O-O {[%clk 0:02:57]}  Bg7 {[%clk 0:02:59]} 6. e5 {[%clk 0:02:57]}  Ng4 {[%clk 0:02:59]} 7. Bxc6 {[%clk 0:02:56]}  dxc6 {[%clk 0:02:59]} 8. Re1 {[%clk 0:02:56]}  O-O {[%clk 0:02:59]} 9. h3 {[%clk 0:02:55]}  Nh6 {[%clk 0:02:59]} 10. d3 {[%clk 0:02:54]}  Nf5 {[%clk 0:02:59]} 11. Bf4 {[%clk 0:02:54]}  Nd4 {[%clk 0:02:59]} 12. Ne4 {[%clk 0:02:52]}  b6 {[%clk 0:02:59]} 13. c3 {[%clk 0:02:52]}  Nxf3+ {[%clk 0:02:55]} 14. Qxf3 {[%clk 0:02:53]}  Be6 {[%clk 0:02:52]} 15. Ng5 {[%clk 0:02:52]}  Qc8 {[%clk 0:02:47]} 16. Nxe6 {[%clk 0:02:51]}  Qxe6 {[%clk 0:02:46]} 17. Bg3 {[%clk 0:02:51]}  Rfd8 {[%clk 0:02:46]} 18. b3 {[%clk 0:02:48]}  Rd5 {[%clk 0:02:43]} 19. Qe4 {[%clk 0:02:43]}  Rad8 {[%clk 0:02:43]} 20. Rad1 {[%clk 0:02:43]}  a5 {[%clk 0:02:35]} 21. a4 {[%clk 0:02:35]}  h5 {[%clk 0:02:03]} 22. f4 {[%clk 0:02:27]}  Qd7 {[%clk 0:01:51]} 23. Re3 {[%clk 0:02:18]}  f5 {[%clk 0:01:41]} 24. exf6 {[%clk 0:02:14]}  Bxf6 {[%clk 0:01:35]} 25. Qxg6+ {[%clk 0:02:13]}  Bg7 {[%clk 0:01:35]} 26. Rde1 {[%clk 0:02:07]}  Qf5 {[%clk 0:01:35]} 27. Qxc6 {[%clk 0:02:04]}  Rxd3 {[%clk 0:01:33]} 28. Rxd3 {[%clk 0:01:58]}  Rxd3 {[%clk 0:01:32]} 29. Bh4 {[%clk 0:01:49]}  Qxf4 {[%clk 0:01:08]} 30. Qe8+ {[%clk 0:01:34]}  Kh7 {[%clk 0:00:58]} 31. Qxh5+ {[%clk 0:01:29]}  Qh6 {[%clk 0:00:59]} 32. Qg4 {[%clk 0:01:18]}  Qg6 {[%clk 0:00:57]} 33. Bg5 {[%clk 0:01:16]}  Rxc3 {[%clk 0:00:45]} 34. Rxe7 {[%clk 0:01:16]}  Rxb3 {[%clk 0:00:45]} 35. Qh4+ {[%clk 0:01:14]}  Kg8 {[%clk 0:00:45]} 36. Qc4+ {[%clk 0:01:14]}  Kh7 {[%clk 0:00:44]} 37. Qxb3 {[%clk 0:01:12]}  Qxg5 {[%clk 0:00:45]} 38. Qd3+ {[%clk 0:01:12]}  Kg8 {[%clk 0:00:29]} 39. Re8+ {[%clk 0:01:09]}  Bf8 {[%clk 0:00:29]} 40. Qc4+ {[%clk 0:01:07]}  Kg7 {[%clk 0:00:28]} 41. Re4 {[%clk 0:01:04]}  Qd2 {[%clk 0:00:20]} 42. Rg4+ {[%clk 0:00:56]}  Kh8 {[%clk 0:00:20]} 43. Rh4+ {[%clk 0:00:53]}  Bh6 {[%clk 0:00:21]} 44. Qe4 {[%clk 0:00:46]}  Kg7 {[%clk 0:00:17]} 45. Rg4+ {[%clk 0:00:46]}  Kf6 {[%clk 0:00:17]} 46. Rg6+ {[%clk 0:00:44]}  Kf7 {[%clk 0:00:17]} 47. Qe6+ {[%clk 0:00:45]}  Kf8 {[%clk 0:00:17]} 48. Rg8# {[%clk 0:00:45]} 1-0


[Site "https://www.chess.com"]